fUST/lending_fUST_20250604
["ID","MTS","AMOUNT","RATE_DAILY","PERIOD"]
[364202948,1749040248336,-350.0,0.00019186,2]
[364202950,1749040248353,-440.0,0.00019186,2]
[364202953,1749040248369,-440.0,0.00019186,2]
[364202956,1749040248385,-576.89,0.00019186,2]
[364202958,1749040248400,-440.0,0.00019187,2]
[364202961,1749040248415,-440.0,0.00019187,2]
[364202963,1749040248428,-440.0,0.00019187,2]
[364202965,1749040248440,-440.0,0.00019187,2]
[364202967,1749040248454,-440.0,0.00019187,2]
[364202970,1749040248470,-440.0,0.00019187,2]
[364202973,1749040248484,-206.70094426,0.00019229,2]
[364202976,1749040248502,-1090.0,0.00019317,2]
[364202978,1749040248520,-41218.01644711,0.00019329,2]
[364202981,1749040248532,-151.0,0.000194,2]
[364202983,1749040248544,-630.68,0.00019452,2]
[364202986,1749040248559,-1157.86,0.00019452,2]
[364202988,1749040248575,-1222.61,0.00019452,2]
[364202991,1749040248590,-2230.4,0.00019452,2]
[364202993,1749040248604,-440.0,0.00019452,2]
[364202996,1749040248619,-440.0,0.00019452,2]
[364202998,1749040248632,-440.0,0.00019452,2]
[364203000,1749040248645,-440.0,0.00019452,2]
[364203003,1749040248658,-440.0,0.00019452,2]
[364203005,1749040248670,-440.0,0.00019452,2]
[364203007,1749040248682,-440.0,0.00019452,2]
[364203010,1749040248695,-440.0,0.00019452,2]
[364203012,1749040248708,-626.59,0.00019452,2]
[364203014,1749040248721,-440.0,0.00019452,2]
[364203017,1749040248735,-440.0,0.00019452,2]
[364203019,1749040248748,-3119.9,0.00019452,2]
[364203021,1749040248760,-440.0,0.00019452,2]
[364203024,1749040248773,-440.0,0.00019452,2]
[364203026,1749040248787,-440.0,0.00019459,2]
[364203029,1749040248799,-340.0,0.00019459,2]
[364203031,1749040248813,-1205.96,0.00019459,2]
[364203033,1749040248826,-165.9063081,0.00019459,2]
[364203036,1749040248843,-556.2380705,0.00019459,2]
[364203038,1749040248856,-440.0,0.00019459,2]
[364203041,1749040248871,-440.0,0.00019459,2]
[364203043,1749040248884,-639.52,0.00019459,2]
[364203045,1749040248896,-440.0,0.00019459,2]
[364203047,1749040248909,-340.0,0.00019459,2]
[364203050,1749040248921,-326.28537315,0.00019459,2]
[364203052,1749040248934,-440.0,0.00019459,2]
[364203055,1749040248947,-340.0,0.0001946,2]
[364203057,1749040248960,-918.8,0.0001946,2]
[364203059,1749040248972,-440.0,0.0001946,2]
[364203062,1749040248985,-440.0,0.0001946,2]
[364203064,1749040248997,-440.0,0.0001946,2]
[364203066,1749040249010,-2263.01,0.0001946,2]
[364203068,1749040249022,-2129.27,0.0001946,2]
[364203071,1749040249036,-440.0,0.0001946,2]
[364203073,1749040249048,-573.28,0.0001946,2]
[364203076,1749040249061,-4671.55,0.0001946,2]
[364203078,1749040249073,-612.36,0.0001946,2]
[364203080,1749040249088,-647.57,0.0001946,2]
[364203083,1749040249101,-440.0,0.0001946,2]
[364203085,1749040249116,-305.031614,0.0001946,2]
[364203087,1749040249130,-210.685247,0.0001946,2]
[364203090,1749040249143,-151.0,0.0001946,2]
[364203092,1749040249156,-305.031614,0.0001946,2]
[364203094,1749040249168,-210.685247,0.0001946,2]
[364203097,1749040249181,-440.0,0.0001946,2]
[364203099,1749040249195,-576.89,0.0001946,2]
[364203101,1749040249209,-340.0,0.00019461,2]
[364203104,1749040249224,-440.0,0.00019461,2]
[364203106,1749040249240,-440.0,0.00019461,2]
[364203108,1749040249253,-440.0,0.00019461,2]
[364203111,1749040249268,-563.2,0.00019461,2]
[364203114,1749040249284,-440.0,0.00019461,2]
[364203116,1749040249295,-1000.0,0.00019602,2]
[364203130,1749040249432,-151.0,0.00019659,2]
[364203132,1749040249447,-151.0,0.00019659,2]
[364203134,1749040249458,-151.0,0.00019659,2]
[364203136,1749040249468,-333.46142109,0.0001966,2]
[364203138,1749040249478,-167.2222613,0.0001968,2]
[364203140,1749040249488,-151.0,0.000197,2]
[364203142,1749040249498,-630.68,0.00019726,2]
[364203144,1749040249507,-1157.86,0.00019726,2]
[364203146,1749040249517,-1222.61,0.00019726,2]
[364203148,1749040249527,-2230.4,0.00019726,2]
[364203150,1749040249536,-440.0,0.00019726,2]
[364203152,1749040249546,-310.0,0.00019726,2]
[364203154,1749040249556,-440.0,0.00019726,2]
[364203157,1749040249567,-310.0,0.00019726,2]
[364203158,1749040249576,-310.0,0.00019726,2]
[364203160,1749040249587,-310.0,0.00019726,2]
[364203162,1749040249596,-440.0,0.00019726,2]
[364203164,1749040249606,-310.0,0.00019726,2]
[364203167,1749040249616,-626.59,0.00019726,2]
[364203168,1749040249626,-440.0,0.00019726,2]
[364203171,1749040249636,-310.0,0.00019726,2]
[364203172,1749040249646,-3119.9,0.00019726,2]
[364203175,1749040249656,-431.99942704,0.00019726,2]
[364203177,1749040249665,-440.0,0.00019726,2]
[364203179,1749040249675,-440.0,0.00019733,2]
[364203181,1749040249684,-1205.96,0.00019733,2]
[364203183,1749040249693,-440.0,0.00019733,2]
[364203185,1749040249703,-440.0,0.00019733,2]
[364203187,1749040249712,-639.52,0.00019733,2]
[364203188,1749040249722,-440.0,0.00019733,2]
[364203191,1749040249732,-440.0,0.00019733,2]
[364203193,1749040249742,-918.8,0.00019734,2]
[364203195,1749040249751,-440.0,0.00019734,2]
[364203197,1749040249761,-330.0,0.00019734,2]
[364203199,1749040249771,-317.86106119,0.00019734,2]
[364203201,1749040249781,-2263.01,0.00019734,2]
[364203203,1749040249791,-2129.27,0.00019734,2]
[364203205,1749040249803,-440.0,0.00019734,2]
[364203207,1749040249812,-573.28,0.00019734,2]
[364203209,1749040249822,-4671.55,0.00019734,2]
[364203211,1749040249832,-612.36,0.00019734,2]
[364203213,1749040249843,-647.57,0.00019734,2]
[364203215,1749040249852,-440.0,0.00019734,2]
[364203217,1749040249862,-329.05555512,0.00019734,2]
[364203219,1749040249872,-576.89,0.00019734,2]
[364203221,1749040249882,-440.0,0.00019735,2]
[364203223,1749040249891,-151.0,0.00019735,2]
[364203225,1749040249900,-394.33,0.00019735,2]
[364203227,1749040249910,-151.0,0.00019735,2]
[364203229,1749040249919,-151.0,0.00019735,2]
[364203231,1749040249930,-330.0,0.00019735,2]
[364203233,1749040249940,-151.0,0.00019735,2]
[364203235,1749040249949,-151.0,0.00019735,2]
[364203237,1749040249958,-151.0,0.00019735,2]
[364203239,1749040249968,-151.0,0.00019735,2]
[364203241,1749040249977,-151.0,0.00019735,2]
[364203243,1749040249986,-440.0,0.00019735,2]
[364203245,1749040249997,-160.0,0.00019779,2]
[364203247,1749040250007,-423.69433488,0.00019779,2]
[364203249,1749040250017,-160.0,0.00019779,2]
[364203251,1749040250027,-160.0,0.00019779,2]
[364203253,1749040250038,-160.0,0.00019779,2]
[364203255,1749040250048,-151.0,0.0001978,2]
[364203257,1749040250058,-314.98208564,0.0001978,2]
[364203259,1749040250068,-12672.94222187,0.0001978,2]
[364203261,1749040250077,-160.0,0.0001978,2]
[364203263,1749040250088,-160.0,0.0001978,2]
[364203265,1749040250097,-500.0,0.00019999,2]
[364203267,1749040250107,-500.0,0.00019999,2]
[364203269,1749040250117,-630.68,0.0002,2]
[364203271,1749040250127,-1157.86,0.0002,2]
[364203273,1749040250137,-1222.61,0.0002,2]
[364203275,1749040250147,-2230.4,0.0002,2]
[364203277,1749040250157,-440.0,0.0002,2]
[364203279,1749040250167,-440.0,0.0002,2]
[364203281,1749040250176,-21421.0,0.0002,2]
[364203283,1749040250187,-440.0,0.0002,2]
[364203285,1749040250199,-626.59,0.0002,2]
[364203287,1749040250209,-20829.0,0.0002,2]
[364203290,1749040250220,-405.21,0.0002,2]
[364203292,1749040250231,-3119.9,0.0002,2]
[364203294,1749040250241,-440.0,0.0002,2]
[364203295,1749040250251,-298.0,0.00020007,2]
[364203298,1749040250262,-1205.96,0.00020007,2]
[364203299,1749040250273,-440.0,0.00020007,2]
[364203301,1749040250282,-440.0,0.00020007,2]
[364203303,1749040250294,-639.52,0.00020007,2]
[364203305,1749040250303,-440.0,0.00020007,2]
[364203307,1749040250312,-320.0,0.00020007,2]
[364203309,1749040250322,-918.8,0.00020008,2]
[364203311,1749040250331,-440.0,0.00020008,2]
[364203313,1749040250344,-2263.01,0.00020008,2]
[364203315,1749040250354,-2129.27,0.00020008,2]
[364203317,1749040250364,-440.0,0.00020008,2]
[364203319,1749040250372,-573.28,0.00020008,2]
[364203321,1749040250382,-4671.55,0.00020008,2]
[364203323,1749040250392,-612.36,0.00020008,2]
[364203325,1749040250402,-647.57,0.00020008,2]
[364203327,1749040250412,-440.0,0.00020008,2]
[364203329,1749040250421,-576.89,0.00020008,2]
[364203331,1749040250432,-440.0,0.00020009,2]
[364203333,1749040250442,-337.27521055,0.00020009,2]
[364203335,1749040250452,-1100.0,0.00020068,2]
[364203337,1749040250462,-4000.0,0.00020153,4]
[364203339,1749040250472,-500.0,0.00020165,2]
[364203341,1749040250482,-500.0,0.00020165,2]
[364203343,1749040250491,-500.0,0.00020165,2]
[364203345,1749040250502,-500.0,0.00020165,2]
[364203348,1749040250512,-500.0,0.00020165,2]
[364203350,1749040250522,-151.0,0.00020165,2]
[364203352,1749040250531,-500.0,0.00020165,2]
[364203354,1749040250541,-151.0,0.00020165,2]
[364203356,1749040250550,-500.0,0.00020165,2]
[364203358,1749040250560,-500.0,0.00020165,2]
[364203360,1749040250570,-500.0,0.00020165,2]
[364203362,1749040250580,-151.0,0.00020165,2]
[364203363,1749040250591,-234.26443732,0.00020165,2]
[364203365,1749040250601,-500.0,0.00020165,2]
[364203367,1749040250610,-500.0,0.00020192,2]
[364203369,1749040250620,-500.0,0.00020192,2]
[364203371,1749040250629,-500.0,0.00020192,2]
[364203373,1749040250639,-500.0,0.00020192,2]
[364203376,1749040250650,-500.0,0.00020192,2]
[364203378,1749040250659,-151.0,0.00020192,2]
[364203380,1749040250669,-540.56203915,0.00020192,2]
[364203382,1749040250679,-151.0,0.00020192,2]
[364203384,1749040250689,-500.0,0.00020192,2]
[364203386,1749040250699,-500.0,0.00020192,2]
[364203388,1749040250708,-500.0,0.00020192,2]
[364203390,1749040250718,-151.0,0.00020192,2]
[364203392,1749040250728,-500.0,0.00020192,2]
[364203394,1749040250739,-500.0,0.0002022,2]
[364203396,1749040250748,-500.0,0.0002022,2]
[364203398,1749040250757,-500.0,0.0002022,2]
[364203400,1749040250767,-500.0,0.0002022,2]
[364203402,1749040250776,-176.45806439,0.0002022,2]
[364203404,1749040250786,-151.0,0.0002022,2]
[364203406,1749040250797,-151.0,0.0002022,2]
[364203408,1749040250806,-500.0,0.0002022,2]
[364203410,1749040250816,-500.0,0.0002022,2]
[364203412,1749040250826,-500.0,0.0002022,2]
[364203414,1749040250839,-500.0,0.0002022,2]
[364203416,1749040250849,-172.41531002,0.0002022,2]
[364203418,1749040250859,-500.0,0.0002022,2]
[364203420,1749040250869,-500.0,0.00020247,2]
[364203422,1749040250878,-500.0,0.00020247,2]
[364203424,1749040250888,-500.0,0.00020247,2]
[364203426,1749040250898,-500.0,0.00020247,2]
[364203428,1749040250907,-203.56453287,0.00020247,2]
[364203430,1749040250917,-280.68865117,0.00020247,2]
[364203432,1749040250926,-500.0,0.00020247,2]
[364203434,1749040250937,-500.0,0.00020247,2]
[364203436,1749040250946,-446.70478284,0.00020247,2]
[364203438,1749040250956,-500.0,0.00020247,2]
[364203439,1749040250966,-500.0,0.00020247,2]
[364203440,1749040250975,-630.68,0.00020273,2]
[364203441,1749040250984,-1157.86,0.00020273,2]
[364203442,1749040250993,-1222.61,0.00020273,2]
[364203443,1749040251003,-2230.4,0.00020273,2]
[364203444,1749040251012,-440.0,0.00020273,2]
[364203445,1749040251021,-440.0,0.00020273,2]
[364203446,1749040251030,-440.0,0.00020273,2]
[364203447,1749040251040,-626.59,0.00020273,2]
[364203448,1749040251050,-3119.9,0.00020273,2]
[364203449,1749040251060,-440.0,0.00020273,2]
[364203450,1749040251070,-500.0,0.00020275,2]
[364203451,1749040251079,-500.0,0.00020275,2]
[364203453,1749040251089,-500.0,0.00020275,2]
[364203455,1749040251098,-537.42740137,0.00020275,2]
[364203457,1749040251108,-183.40646033,0.00020275,2]
[364203459,1749040251117,-235.15194365,0.00020275,2]
[364203461,1749040251127,-500.0,0.00020275,2]
[364203463,1749040251136,-500.0,0.00020275,2]
[364203465,1749040251146,-1205.96,0.00020281,2]
[364203467,1749040251155,-310.0,0.00020281,2]
[364203469,1749040251165,-310.0,0.00020281,2]
[364203471,1749040251175,-639.52,0.00020281,2]
[364203473,1749040251184,-311.50025,0.00020281,2]
[364203475,1749040251195,-918.8,0.00020282,2]
[364203477,1749040251207,-440.0,0.00020282,2]
[364203479,1749040251217,-2263.01,0.00020282,2]
[364203481,1749040251226,-2129.27,0.00020282,2]
[364203483,1749040251237,-440.0,0.00020282,2]
[364203485,1749040251246,-573.28,0.00020282,2]
[364203487,1749040251256,-4671.55,0.00020282,2]
[364203489,1749040251265,-612.36,0.00020282,2]
[364203491,1749040251276,-647.57,0.00020282,2]
[364203493,1749040251286,-310.0,0.00020282,2]
[364203495,1749040251296,-576.89,0.00020282,2]
[364203497,1749040251305,-440.0,0.00020283,2]
[364203499,1749040251315,-151.0,0.00020283,2]
[364203501,1749040251324,-151.8082,0.00020283,2]
[364203503,1749040251334,-500.0,0.00020302,2]
[364203505,1749040251344,-624.25530911,0.00020302,2]
[364203507,1749040251354,-500.0,0.00020302,2]
[364203509,1749040251364,-500.0,0.00020302,2]
[364203510,1749040251373,-500.0,0.00020302,2]
[364203512,1749040251383,-500.0,0.00020329,2]
[364203514,1749040251393,-271.33166194,0.00020329,2]
[364203516,1749040251403,-500.0,0.00020329,2]
[364203518,1749040251412,-500.0,0.00020329,2]
[364203520,1749040251421,-500.0,0.00020357,2]
[364203522,1749040251430,-500.0,0.00020357,2]
[364203524,1749040251440,-500.0,0.00020357,2]
[364203526,1749040251450,-269.0,0.00020384,2]
[364203528,1749040251460,-500.0,0.00020384,2]
[364203530,1749040251470,-500.0,0.00020384,2]
[364203532,1749040251481,-500.0,0.00020412,2]
[364203534,1749040251491,-500.0,0.00020412,2]
[364203536,1749040251501,-500.0,0.00020439,2]
[364203538,1749040251511,-500.0,0.00020439,2]
[364203540,1749040251520,-500.0,0.00020466,2]
[364203542,1749040251530,-500.0,0.00020466,2]
[364203544,1749040251539,-500.0,0.0002048,2]
[364203546,1749040251549,-195.36693875,0.0002048,2]
[364203548,1749040251559,-341.58993269,0.0002048,2]
[364203550,1749040251568,-423.43598683,0.0002048,2]
[364203552,1749040251578,-500.0,0.0002048,2]
[364203554,1749040251589,-500.42355388,0.0002048,2]
[364203556,1749040251599,-501.01347757,0.0002048,2]
[364203567,1749040251699,-500.0,0.0002048,2]
[364203569,1749040251710,-502.26417517,0.0002048,2]
[364203571,1749040251719,-500.0,0.00020494,2]
[364203573,1749040251730,-500.0,0.00020494,2]
[364203575,1749040251740,-500.0,0.00020521,2]
[364203577,1749040251750,-500.0,0.00020521,2]
[364203579,1749040251759,-630.68,0.00020547,2]
[364203581,1749040251769,-1157.86,0.00020547,2]
[364203583,1749040251779,-1222.61,0.00020547,2]
[364203585,1749040251789,-2230.4,0.00020547,2]
[364203587,1749040251799,-440.0,0.00020547,2]
[364203589,1749040251809,-440.0,0.00020547,2]
[364203591,1749040251818,-440.0,0.00020547,2]
[364203593,1749040251827,-626.59,0.00020547,2]
[364203595,1749040251837,-305.031614,0.00020547,2]
[364203597,1749040251847,-210.685247,0.00020547,2]
[364203599,1749040251858,-151.0,0.00020547,2]
[364203601,1749040251867,-305.031614,0.00020547,2]
[364203603,1749040251877,-3119.9,0.00020547,2]
[364203605,1749040251886,-210.685247,0.00020547,2]
[364203607,1749040251897,-440.0,0.00020547,2]
[364203609,1749040251906,-500.0,0.00020548,2]
[364203611,1749040251916,-500.0,0.00020548,2]
[364203613,1749040251925,-500.0,0.00020548,2]
[364203615,1749040251935,-500.0,0.00020548,2]
[364203617,1749040251944,-500.0,0.00020548,2]
[364203619,1749040251954,-650.0,0.00020548,2]
[364203621,1749040251964,-500.0,0.00020549,2]
[364203623,1749040251974,-500.0,0.00020549,2]
[364203625,1749040251984,-1205.96,0.00020555,2]
[364203627,1749040251994,-639.52,0.00020555,2]
[364203629,1749040252003,-918.8,0.00020556,2]
[364203631,1749040252013,-440.0,0.00020556,2]
[364203633,1749040252023,-2263.01,0.00020556,2]
[364203635,1749040252033,-2129.27,0.00020556,2]
[364203637,1749040252042,-440.0,0.00020556,2]
[364203639,1749040252051,-573.28,0.00020556,2]
[364203641,1749040252062,-4671.55,0.00020556,2]
[364203642,1749040252072,-612.36,0.00020556,2]
[364203644,1749040252082,-647.57,0.00020556,2]
[364203646,1749040252094,-576.89,0.00020556,2]
[364203648,1749040252103,-440.0,0.00020557,2]
[364203650,1749040252114,-275.47805437,0.00020576,2]
[364203652,1749040252124,-500.0,0.00020576,2]
[364203654,1749040252134,-440.0,0.000206,2]
[364203656,1749040252144,-500.0,0.00020603,2]
[364203658,1749040252154,-112398.92506955,0.00020621,2]
[364203660,1749040252164,-500.0,0.00020631,2]
[364203662,1749040252174,-630.68,0.00020821,2]
[364203664,1749040252183,-1157.86,0.00020821,2]
[364203666,1749040252195,-1222.61,0.00020821,2]
[364203668,1749040252207,-2230.4,0.00020821,2]
[364203670,1749040252217,-440.0,0.00020821,2]
[364203672,1749040252227,-440.0,0.00020821,2]
[364203674,1749040252238,-440.0,0.00020821,2]
[364203676,1749040252247,-626.59,0.00020821,2]
[364203678,1749040252257,-3119.9,0.00020821,2]
[364203680,1749040252267,-440.0,0.00020821,2]
[364203682,1749040252278,-1205.96,0.00020829,2]
[364203685,1749040252288,-639.52,0.00020829,2]
[364203687,1749040252299,-305.031614,0.00020829,2]
[364203689,1749040252311,-210.685247,0.00020829,2]
[364203691,1749040252320,-305.031614,0.00020829,2]
[364203692,1749040252330,-151.0,0.00020829,2]
[364203695,1749040252342,-210.685247,0.00020829,2]
[364203697,1749040252352,-918.8,0.0002083,2]
[364203699,1749040252361,-440.0,0.0002083,2]
[364203701,1749040252372,-2263.01,0.0002083,2]
[364203703,1749040252383,-2129.27,0.0002083,2]
[364203704,1749040252392,-440.0,0.0002083,2]
[364203706,1749040252402,-573.28,0.0002083,2]
[364203708,1749040252412,-4671.55,0.0002083,2]
[364203711,1749040252422,-612.36,0.0002083,2]
[364203712,1749040252432,-647.57,0.0002083,2]
[364203714,1749040252442,-576.89,0.0002083,2]
[364203717,1749040252452,-440.0,0.00020831,2]
[364203719,1749040252463,-500.0,0.00020844,2]
[364203720,1749040252473,-500.0,0.00020844,2]
[364203723,1749040252485,-500.0,0.00020844,2]
[364203724,1749040252495,-500.0,0.00020844,2]
[364203726,1749040252505,-500.0,0.00020844,2]
[364203728,1749040252514,-347.47889072,0.00020844,2]
[364203730,1749040252524,-500.0,0.00020844,2]
[364203732,1749040252534,-502.27571044,0.00020844,2]
[364203734,1749040252543,-500.0,0.00020844,2]
[364203736,1749040252553,-500.0,0.00020844,2]
[364203739,1749040252563,-500.0,0.00020844,2]
[364203741,1749040252573,-502.87934418,0.00020844,2]
[364203743,1749040252584,-500.0,0.00020844,2]
[364203745,1749040252594,-1282.19,0.000209,2]
[364203747,1749040252604,-151.0,0.000209,2]
[364203749,1749040252614,-151.0,0.000209,2]
[364203751,1749040252623,-151.0,0.000209,2]
[364203753,1749040252633,-352.0,0.0002091,2]
[364203755,1749040252643,-151.0,0.00020966,2]
[364203757,1749040252652,-1888.0,0.00020966,2]
[364203759,1749040252661,-500.0,0.00020966,2]
[364203761,1749040252671,-500.0,0.00020966,2]
[364203763,1749040252680,-500.0,0.00020966,2]
[364203764,1749040252689,-500.0,0.00020966,2]
[364203767,1749040252699,-207.4,0.00020966,2]
[364203769,1749040252709,-500.0,0.00020966,2]
[364203771,1749040252718,-632.79567003,0.00020966,2]
[364203773,1749040252728,-500.0,0.00020966,2]
[364203775,1749040252737,-500.0,0.00020966,2]
[364203777,1749040252747,-500.0,0.00020966,2]
[364203778,1749040252757,-500.0,0.00020966,2]
[364203780,1749040252767,-500.0,0.00020966,2]
[364203782,1749040252776,-500.0,0.00020966,2]
[364203784,1749040252786,-500.0,0.00020966,2]
[364203787,1749040252795,-5000.0,0.00020966,2]
[364203789,1749040252805,-500.0,0.00020966,2]
[364203790,1749040252815,-500.0,0.00020966,2]
[364203792,1749040252825,-500.0,0.00020966,2]
[364203795,1749040252836,-500.0,0.00020966,2]
[364203797,1749040252846,-500.0,0.00020966,2]
[364203799,1749040252856,-500.0,0.00020966,2]
[364203800,1749040252867,-7519.99480093,0.00021,2]
[364203802,1749040252876,-1957.856,0.00021021,2]
[364203804,1749040252885,-2030.296672,0.00021076,2]
[364203806,1749040252895,-630.68,0.00021095,2]
[364203808,1749040252905,-1157.86,0.00021095,2]
[364203810,1749040252914,-1222.61,0.00021095,2]
[364203812,1749040252925,-2230.4,0.00021095,2]
[364203815,1749040252935,-440.0,0.00021095,2]
[364203817,1749040252945,-570.9,0.00021095,2]
[364203819,1749040252955,-440.0,0.00021095,2]
[364203820,1749040252964,-626.59,0.00021095,2]
[364203822,1749040252974,-3119.9,0.00021095,2]
[364203824,1749040252984,-440.0,0.00021095,2]
[364203826,1749040252993,-1205.96,0.00021103,2]
[364203828,1749040253004,-639.52,0.00021103,2]
[364203830,1749040253014,-918.8,0.00021104,2]
[364203833,1749040253024,-440.0,0.00021104,2]
[364203835,1749040253034,-2263.01,0.00021104,2]
[364203837,1749040253044,-2129.27,0.00021104,2]
[364203839,1749040253053,-440.0,0.00021104,2]
[364203841,1749040253063,-573.28,0.00021104,2]
[364203843,1749040253073,-4671.55,0.00021104,2]
[364203845,1749040253084,-612.36,0.00021104,2]
[364203847,1749040253095,-647.57,0.00021104,2]
[364203849,1749040253105,-576.89,0.00021104,2]
[364203851,1749040253114,-448.3,0.00021105,2]
[364203853,1749040253125,-2105.41764886,0.00021131,2]
[364203855,1749040253135,-1100.0,0.00021164,2]
[364203857,1749040253145,-2183.31810187,0.00021186,2]
[364203859,1749040253155,-29875.16,0.000212,2]
[364203861,1749040253165,-151.0,0.000212,2]
[364203863,1749040253175,-240.09847493,0.00021241,2]
[364203865,1749040253184,-151.0,0.000213,3]
[364203867,1749040253196,-630.68,0.00021369,2]
[364203869,1749040253207,-1157.86,0.00021369,2]
[364203871,1749040253217,-1222.61,0.00021369,2]
[364203873,1749040253227,-2230.4,0.00021369,2]
[364203875,1749040253239,-440.0,0.00021369,2]
[364203877,1749040253248,-440.0,0.00021369,2]
[364203879,1749040253258,-626.59,0.00021369,2]
[364203880,1749040253269,-3119.9,0.00021369,2]
[364203881,1749040253279,-440.0,0.00021369,2]
[364203882,1749040253289,-1205.96,0.00021377,2]
[364203883,1749040253299,-639.52,0.00021377,2]
[364203884,1749040253308,-918.8,0.00021378,2]
[364203885,1749040253317,-440.0,0.00021378,2]
[364203886,1749040253327,-2263.01,0.00021378,2]
[364203887,1749040253337,-2129.27,0.00021378,2]
[364203888,1749040253347,-440.0,0.00021378,2]
[364203889,1749040253356,-573.28,0.00021378,2]
[364203890,1749040253366,-4671.55,0.00021378,2]
[364203891,1749040253376,-612.36,0.00021378,2]
[364203892,1749040253388,-647.57,0.00021378,2]
[364203893,1749040253398,-576.89,0.00021378,2]
[364203894,1749040253407,-503.83729282,0.00021392,2]
[364203895,1749040253417,-405.0,0.00021477,2]
[364203896,1749040253426,-962.0,0.00021477,2]
[364203897,1749040253435,-2225.0,0.00021477,2]
[364203898,1749040253445,-709.0,0.00021477,2]
[364203899,1749040253454,-151.0,0.00021514,2]
[364203900,1749040253464,-5000.0,0.00021514,2]
[364203901,1749040253473,-630.68,0.00021643,2]
[364203902,1749040253484,-1157.86,0.00021643,2]
[364203903,1749040253494,-1222.61,0.00021643,2]
[364203904,1749040253504,-2230.4,0.00021643,2]
[364203905,1749040253514,-440.0,0.00021643,2]
[364203906,1749040253523,-440.0,0.00021643,2]
[364203907,1749040253532,-626.59,0.00021643,2]
[364203908,1749040253542,-3119.9,0.00021643,2]
[364203909,1749040253551,-440.0,0.00021643,2]
[364203910,1749040253560,-1205.96,0.00021651,2]
[364203911,1749040253570,-639.52,0.00021651,2]
[364203912,1749040253579,-675571.09779024,0.00021651,2]
[364203960,1749040254061,-440.0,0.00016438,2]
[364203962,1749040254070,-292.50793432,0.00016438,2]
[364203963,1749040254080,-440.0,0.00016712,2]
[364203965,1749040254091,-440.0,0.00016986,2]
[364203967,1749040254100,-440.0,0.0001726,2]
[364203970,1749040254111,-440.0,0.00017534,2]
[364203972,1749040254121,-370.0,0.00017808,2]
[364203973,1749040254130,-212.90465545,0.00019779,2]
[364203975,1749040254140,-500.0,0.00019999,2]
[364203977,1749040254150,-500.0,0.00019999,2]
[364203979,1749040254158,-403.34371948,0.00019999,2]
[364203981,1749040254168,-500.0,0.00019999,2]
[364203983,1749040254177,-500.0,0.00019999,2]
[364203985,1749040254186,-500.0,0.00019999,2]
[364203987,1749040254197,-500.0,0.00019999,2]
[364203989,1749040254208,-500.0,0.00020658,2]
[364203991,1749040254217,-422.47185108,0.00020686,2]
[364203993,1749040254227,-372319.78340976,0.00021651,2]
[364203995,1749040254238,-918.8,0.00021652,2]